bitfinex/quotes_BTCUSD_20250204
["timestamp","ask_amount","ask_price","bid_price","bid_amount"]
[1738674103906,0.00024813,99376.0,99368.0,0.150953]
[1738674104136,0.15118913,99376.0,99368.0,0.150953]
[1738674104589,0.150945,99374.0,99364.0,0.0831]
[1738674104821,0.00024813,99376.0,99364.0,0.0831]
[1738674105062,0.150943,99375.0,99367.0,0.150954]
[1738674105293,0.00024813,99376.0,99365.0,0.0284383]
[1738674105770,0.00024813,99376.0,99365.0,0.201278]
[1738674106010,0.00024813,99376.0,99372.0,0.150946]
[1738674106262,0.00024813,99376.0,99368.0,0.20127]
[1738674106484,0.00024813,99376.0,99371.0,0.150948]
[1738674106711,0.00024813,99376.0,99372.0,0.150947]
[1738674106958,0.00024813,99376.0,99373.0,0.150946]
[1738674107184,0.150934,99381.0,99372.0,0.0352221]
[1738674107406,0.3029138,99388.0,99370.0,0.15095]
[1738674107634,0.150933,99382.0,99365.0,0.201278]
[1738674107864,0.50461747,99388.0,99374.0,0.150943]
[1738674108129,0.30338447,99388.0,99367.0,0.00120751]
[1738674108579,0.30338447,99388.0,99381.0,0.150933]
[1738674108890,0.30338447,99388.0,99378.0,0.201249]
[1738674108891,0.20338447,99388.0,99378.0,0.201249]
[1738674109133,0.150928,99385.0,99375.0,0.201256]
[1738674109358,0.150928,99385.0,99374.0,0.150943]
[1738674109554,0.150928,99385.0,99365.0,0.002]
[1738674109775,0.20338447,99388.0,99366.0,0.00120746]
[1738674109978,0.150928,99385.0,99364.0,0.0831]
[1738674110183,0.150928,99385.0,99376.0,0.150941]
[1738674110905,0.150928,99385.0,99377.0,0.0150941]
[1738674111104,0.150928,99385.0,99377.0,0.1660341]
[1738674111305,0.150931,99383.0,99377.0,0.0150941]
[1738674111540,0.001,99385.0,99364.0,0.0831]
[1738674111748,0.0001069,99379.0,99375.0,0.150942]
[1738674112216,0.1320369,99384.0,99377.0,0.002]
[1738674112667,0.150931,99383.0,99377.0,0.002]
[1738674112902,0.150929,99385.0,99364.0,0.18548506]
[1738674113140,0.20338447,99388.0,99374.0,0.150944]
[1738674113377,0.150948,99372.0,99364.0,0.234059]
[1738674113611,0.13581079,99384.0,99365.0,0.150958]
[1738674113854,0.15095,99371.0,99364.0,0.0831]
[1738674114115,0.10238506,99387.0,99365.0,0.00831]
[1738674114116,0.201261,99374.0,99365.0,0.00831]
[1738674114361,0.0454,99385.0,99364.0,0.0831]
[1738674114596,0.10238506,99384.0,99365.0,0.150958]
[1738674114797,0.10238506,99384.0,99364.0,0.0831]
[1738674114798,0.10238506,99384.0,99366.0,0.150955]
[1738674115033,0.10238506,99384.0,99364.0,0.0831]
[1738674115294,0.10238506,99384.0,99364.0,0.284378]
[1738674115522,0.22383471,99388.0,99365.0,0.00120757]
[1738674115523,0.20438447,99388.0,99365.0,0.00120757]
[1738674115754,0.150925,99387.0,99378.0,0.150937]
[1738674115991,0.150927,99386.0,99378.0,0.150937]
[1738674116224,0.15093,99384.0,99376.0,0.150941]
[1738674116465,0.150929,99385.0,99375.0,0.201255]
[1738674116661,0.20438447,99388.0,99376.0,0.0352196]
[1738674116940,0.150926,99386.0,99376.0,0.150941]
[1738674117169,0.20438447,99388.0,99380.0,0.150935]
[1738674117409,0.00147067,99388.0,99381.0,0.079]
[1738674117638,0.00147067,99388.0,99387.0,0.150925]
[1738674118796,0.00147067,99388.0,99381.0,0.280244]
[1738674119121,0.00147067,99388.0,99381.0,0.079]
[1738674119210,0.00147067,99388.0,99381.0,0.229933]
[1738674119698,0.00147067,99388.0,99381.0,0.079]
[1738674119946,0.00047067,99388.0,99381.0,0.079]
[1738674120177,0.00047067,99388.0,99377.0,0.150939]
[1738674120409,0.150933,99382.0,99375.0,0.150942]
[1738674120708,0.150933,99382.0,99381.0,0.002]
[1738674121239,0.150958,99365.0,99364.0,0.001]
[1738674121456,0.13581079,99380.0,99364.0,0.001]
[1738674121720,0.201251,99378.0,99365.0,0.150958]
[1738674121939,0.352189,99378.0,99377.0,0.002]
[1738674122154,0.333189,99378.0,99377.0,0.002]
[1738674122360,0.2029138,99381.0,99367.0,0.150954]
[1738674122583,0.150942,99376.0,99369.0,0.150952]
[1738674122813,0.2029138,99381.0,99368.0,0.0353237]
[1738674123066,0.2029138,99381.0,99364.0,0.001]
[1738674123310,0.150936,99380.0,99364.0,0.001]
[1738674123544,0.2029138,99381.0,99364.0,0.001]
[1738674123769,0.2029138,99381.0,99374.0,0.150944]
[1738674124016,0.2029138,99381.0,99364.0,0.001]
[1738674124017,0.2029138,99381.0,99380.0,0.150935]
[1738674124248,0.2029138,99381.0,99380.0,0.2479285]
[1738674124468,0.00047067,99388.0,99380.0,0.0969935]
[1738674124711,0.00047067,99388.0,99380.0,0.2982405]
[1738674124944,0.0001068,99381.0,99380.0,0.0969935]
[1738674125154,0.0001068,99381.0,99380.0,0.2479285]
[1738674125836,0.0001068,99381.0,99380.0,0.35231356]
[1738674126062,0.0001068,99381.0,99380.0,0.35031356]
[1738674126513,0.00027747,99388.0,99381.0,0.023]
[1738674126742,0.00027747,99388.0,99387.0,0.251725]
[1738674126954,0.00027747,99388.0,99387.0,0.35411006]
[1738674127168,0.1509938,99412.0,99388.0,0.402462]
[1738674127398,0.15089,99410.0,99399.0,0.150906]
[1738674127609,0.15089,99410.0,99400.0,0.150904]
[1738674127823,0.20133784,99412.0,99400.0,0.150904]
[1738674128032,0.1509,99403.0,99390.0,0.201227]
[1738674128241,0.150894,99408.0,99389.0,0.10238506]
[1738674128490,0.00015384,99412.0,99410.0,0.150889]
[1738674128703,0.00015384,99412.0,99411.0,0.0761]
[1738674129357,0.00015384,99412.0,99402.0,0.0832]
[1738674129558,0.00015384,99412.0,99402.0,0.284402]
[1738674129764,0.00015384,99412.0,99402.0,0.0832]
[1738674130013,0.00015384,99412.0,99407.0,0.150894]
[1738674130260,0.00015384,99412.0,99405.0,0.201197]
[1738674130481,0.00015384,99412.0,99410.0,0.150889]
[1738674130899,0.00015384,99412.0,99405.0,0.201197]
[1738674131105,0.00015384,99412.0,99406.0,0.150896]
[1738674131336,0.00015384,99412.0,99403.0,0.06210354]
[1738674131551,0.00015384,99412.0,99407.0,0.201193]
[1738674131833,0.00015384,99412.0,99409.0,0.150891]
[1738674132046,0.13203484,99416.0,99410.0,0.002]
[1738674132467,0.13203484,99416.0,99407.0,0.150893]
[1738674132853,0.13203484,99416.0,99410.0,0.001]
[1738674133159,0.150879,99418.0,99410.0,0.04137725]
[1738674133574,0.150881,99416.0,99411.0,0.01872365]
[1738674133805,0.0001069,99419.0,99411.0,0.01872365]
[1738674134231,0.201172,99417.0,99411.0,0.01872365]
[1738674134644,0.201176,99416.0,99411.0,0.01872365]
[1738674134853,0.150881,99416.0,99410.0,0.001]
[1738674135296,0.150881,99416.0,99410.0,0.04018147]
[1738674135479,0.150885,99413.0,99410.0,0.001]
[1738674135734,0.0001069,99419.0,99410.0,0.001]
[1738674135943,0.150884,99414.0,99411.0,0.02072365]
[1738674136151,0.150882,99416.0,99411.0,0.02072365]
[1738674136370,0.0001069,99419.0,99411.0,0.01872365]
[1738674136581,0.150879,99417.0,99411.0,0.01872365]
[1738674136791,0.0001069,99419.0,99412.0,0.01872365]
[1738674136993,0.131885,99413.0,99412.0,0.01872365]
[1738674138041,0.201175,99416.0,99403.0,0.01872365]
[1738674138467,0.150898,99405.0,99403.0,0.01872365]
[1738674139123,0.1509,99403.0,99402.0,4.704e-05]
[1738674140434,0.17043301,99403.0,99402.0,4.704e-05]
[1738674140656,0.01953301,99403.0,99402.0,4.704e-05]
[1738674140869,0.3538128,99404.0,99402.0,4.704e-05]
[1738674141499,0.35366058,99404.0,99402.0,4.704e-05]
[1738674141999,0.35366058,99404.0,99403.0,0.01872365]
[1738674142236,0.20276158,99404.0,99403.0,0.01872365]
[1738674142877,0.35366058,99404.0,99403.0,0.01872365]
[1738674143127,0.150899,99404.0,99403.0,0.01872365]
[1738674144591,0.150899,99404.0,99402.0,0.00104704]
[1738674144592,0.1509,99403.0,99402.0,0.00304704]
[1738674145064,0.44878506,99403.0,99402.0,0.00304704]
[1738674146745,0.4683696,99403.0,99402.0,0.00204704]
[1738674147451,0.4683696,99403.0,99402.0,4.704e-05]
[1738674147693,0.4683696,99403.0,99402.0,0.01877069]
[1738674148890,0.67113118,99403.0,99402.0,0.01877069]
[1738674150476,0.62563118,99403.0,99402.0,0.00027132]
[1738674150683,0.52324612,99403.0,99402.0,0.00027132]
[1738674150969,0.35276158,99403.0,99402.0,0.00027132]
[1738674151442,0.20276158,99403.0,99402.0,0.00027132]
[1738674151661,0.20276158,99403.0,99402.0,0.15117332]
[1738674152099,0.18376158,99403.0,99402.0,0.15117332]
[1738674152319,0.18376158,99403.0,99402.0,0.00027132]
[1738674153431,0.18376158,99403.0,99402.0,0.01899497]
[1738674154091,0.18376158,99403.0,99402.0,0.02836989]
[1738674154360,0.0001068,99417.0,99415.0,0.150882]
[1738674154876,0.0001068,99417.0,99416.0,0.07960692]
[1738674155103,0.0001068,99417.0,99416.0,0.18199198]
[1738674155317,0.0001068,99417.0,99416.0,0.18078506]
[1738674156218,0.0001068,99417.0,99416.0,0.19950871]
[1738674156432,0.0001068,99417.0,99416.0,0.23083827]
[1738674156666,0.0001068,99417.0,99416.0,0.23283827]
[1738674157099,0.16508208,99431.0,99424.0,0.15]
[1738674157503,0.00506295,99430.0,99426.0,0.15]
[1738674158509,0.150865,99427.0,99417.0,0.15]
[1738674158749,0.150877,99419.0,99417.0,0.15]
[1738674159013,0.16508208,99425.0,99399.0,0.0825]
[1738674159263,0.150899,99404.0,99391.0,0.0825]
[1738674159500,0.00502522,99403.0,99389.0,0.001]
[1738674159732,0.00502522,99403.0,99389.0,0.15192]
[1738674159966,0.00502522,99403.0,99390.0,0.15]
[1738674160439,0.00502522,99403.0,99389.0,0.001]
[1738674160672,0.10741028,99403.0,99389.0,0.001]
[1738674160907,0.27249236,99403.0,99389.0,0.001]
[1738674161156,0.33144792,99403.0,99389.0,0.001]
[1738674161383,0.27249236,99403.0,99389.0,0.001]
[1738674162982,0.27249236,99403.0,99402.0,0.00227132]
[1738674164067,0.27249236,99403.0,99402.0,0.00247132]
[1738674164496,0.27349236,99403.0,99402.0,0.00247132]
[1738674164708,0.38669236,99403.0,99402.0,3.2e-07]
[1738674164975,1.98811646,99403.0,99402.0,3.2e-07]
[1738674165416,1.87669236,99403.0,99402.0,3.2e-07]
[1738674167152,0.37569236,99403.0,99402.0,3.2e-07]
[1738674167365,0.15092,99390.0,99389.0,0.001]
[1738674167584,0.41838714,99390.0,99389.0,0.001]
[1738674167807,0.42321376,99390.0,99389.0,0.001]
[1738674170083,0.44096765,99390.0,99389.0,0.001]
[1738674170308,0.54206765,99390.0,99389.0,0.001]
[1738674170527,0.150952,99369.0,99368.0,0.00022428]
[1738674170751,0.41841914,99369.0,99368.0,0.00022428]
[1738674170966,0.423193,99369.0,99368.0,0.00022428]
[1738674172791,0.44083524,99369.0,99368.0,0.00022428]
[1738674174084,0.52517166,99369.0,99368.0,0.00022428]
[1738674174294,0.44083524,99369.0,99368.0,0.00022428]
[1738674179260,0.50119524,99369.0,99368.0,0.00022428]
[1738674179508,0.62409524,99369.0,99368.0,0.00022428]
[1738674180140,0.62509524,99369.0,99368.0,0.00022428]
[1738674180410,0.62409524,99369.0,99368.0,0.00022428]
[1738674180622,0.72658996,99369.0,99368.0,0.00022428]
[1738674181060,0.62409524,99369.0,99368.0,0.00022428]
[1738674181267,0.48873524,99369.0,99368.0,0.00022428]
[1738674182142,0.44083524,99369.0,99368.0,0.00022428]
[1738674182780,0.28988324,99369.0,99368.0,0.00022428]
[1738674183014,0.00477386,99369.0,99368.0,0.30117828]
[1738674183219,0.00677386,99369.0,99368.0,0.40849611]
[1738674183424,0.002,99369.0,99368.0,0.40849611]
[1738674183648,0.002,99369.0,99368.0,0.22742428]
[1738674183863,0.002,99369.0,99368.0,0.37837828]
[1738674184496,0.003,99369.0,99368.0,0.22742428]
[1738674184700,0.003,99369.0,99368.0,0.37837828]
[1738674184924,0.150943,99376.0,99369.0,0.15]
[1738674185141,0.15095,99370.0,99369.0,0.15]
[1738674185353,0.201249,99379.0,99369.0,0.15]
[1738674185574,0.15095,99370.0,99369.0,0.15]
[1738674185987,0.15095,99370.0,99368.0,0.07742428]
[1738674186190,0.01761141,99379.0,99368.0,0.07742428]
[1738674186603,0.150952,99369.0,99368.0,0.07742428]
[1738674186822,0.150952,99369.0,99368.0,0.00022428]
[1738674187025,0.1365221,99369.0,99368.0,0.00022428]
[1738674188014,0.1365221,99369.0,99368.0,0.00222428]
[1738674188015,0.23890716,99369.0,99368.0,0.00222428]
[1738674188412,1.90398924,99369.0,99368.0,0.00222428]
[1738674188620,0.40398924,99369.0,99368.0,0.00222428]
[1738674189301,0.42162759,99369.0,99368.0,0.00222428]
[1738674190374,0.50404335,99369.0,99368.0,0.00222428]
[1738674190611,0.151005,99334.0,99333.0,0.0773]
[1738674190811,0.00452178,99334.0,99333.0,0.0773]
[1738674191026,0.13581079,99360.0,99333.0,0.22850802]
[1738674191257,0.150982,99349.0,99338.0,0.15]
[1738674191466,0.00452644,99348.0,99339.0,0.00120784]
[1738674191681,0.201298,99356.0,99340.0,0.201328]
[1738674191904,0.00452611,99347.0,99343.0,0.150991]
[1738674192120,0.150981,99350.0,99343.0,0.16443693]
[1738674192338,0.0045306,99346.0,99343.0,0.01344593]
[1738674192562,0.201292,99358.0,99339.0,0.00120784]
[1738674192776,0.13581079,99360.0,99341.0,0.150994]
[1738674192983,0.150984,99348.0,99341.0,0.150994]
[1738674193212,0.15098,99351.0,99339.0,0.00120784]
[1738674193418,0.13581079,99360.0,99340.0,0.00120783]
[1738674193624,0.13581079,99350.0,99338.0,0.15]
[1738674193833,0.150986,99347.0,99338.0,0.15]
[1738674194040,0.15099,99344.0,99338.0,0.15]
[1738674194248,0.00453641,99343.0,99338.0,0.15]
[1738674194518,0.150983,99349.0,99342.0,0.150993]
[1738674194756,0.00453608,99342.0,99341.0,0.150995]
[1738674195003,0.150982,99350.0,99342.0,0.150992]
[1738674195276,0.00453605,99349.0,99340.0,0.00120784]
[1738674195471,0.01826841,99356.0,99340.0,0.00120784]
[1738674195776,0.00453889,99348.0,99341.0,0.150994]
[1738674195973,0.20126,99374.0,99343.0,0.201322]
[1738674196191,0.33705979,99380.0,99343.0,0.201322]
[1738674196192,0.00453855,99347.0,99346.0,0.279516]
[1738674196397,0.201259,99375.0,99362.0,0.150963]
[1738674196398,0.01802419,99375.0,99362.0,0.150963]
[1738674196621,0.08024193,99379.0,99354.0,0.00120753]
[1738674196622,0.150946,99373.0,99354.0,0.00120753]
[1738674196858,0.1555111,99372.0,99355.0,0.10238506]
[1738674197097,0.201251,99378.0,99356.0,0.15120755]
[1738674197318,0.201251,99378.0,99368.0,0.0788]
[1738674197535,0.15095,99371.0,99368.0,0.0788]
[1738674197764,0.150951,99370.0,99368.0,0.0788]
[1738674197995,0.150951,99370.0,99368.0,0.001]
[1738674198436,0.150952,99369.0,99368.0,0.001]
[1738674199280,0.201273,99368.0,99357.0,0.0778]
[1738674199505,0.150962,99363.0,99358.0,0.00778]
[1738674199713,4.729e-05,99378.0,99357.0,0.2278]
[1738674199941,0.15095,99371.0,99363.0,0.150961]
[1738674200163,0.150958,99366.0,99359.0,0.15]
[1738674200548,0.150958,99366.0,99359.0,0.300967]
[1738674200691,0.201271,99369.0,99359.0,0.300967]
[1738674200897,0.13581079,99373.0,99359.0,0.15]
[1738674201161,0.201279,99365.0,99359.0,0.15]
[1738674201350,0.150959,99365.0,99357.0,0.2278]
[1738674201554,0.201265,99371.0,99357.0,0.2278]
[1738674201759,0.13581079,99380.0,99358.0,0.1929101]
[1738674201958,0.150947,99373.0,99360.0,0.15]
[1738674202140,0.150951,99370.0,99361.0,0.150964]
[1738674202370,0.13581079,99370.0,99360.0,0.15]
[1738674202566,0.150956,99367.0,99360.0,0.15]
[1738674202803,0.150957,99366.0,99360.0,0.15]
[1738674202999,0.150955,99368.0,99358.0,0.300969]
[1738674203172,0.150941,99376.0,99364.0,0.150959]
[1738674203376,0.16508208,99377.0,99358.0,0.15]
[1738674203610,0.16508208,99388.0,99377.0,0.15094]
[1738674203823,0.31600608,99388.0,99377.0,0.247634]
[1738674204030,0.16508208,99388.0,99377.0,0.0816]
[1738674204449,0.150928,99385.0,99377.0,0.0816]
[1738674204713,0.16508208,99388.0,99377.0,0.0816]
[1738674204905,0.201239,99385.0,99377.0,0.0816]
[1738674205108,0.201241,99384.0,99377.0,0.0816]
[1738674205340,0.150933,99382.0,99377.0,0.0816]
[1738674205470,0.150934,99381.0,99377.0,0.0816]
[1738674205680,0.201241,99383.0,99377.0,0.0816]
[1738674206088,0.36631508,99388.0,99377.0,0.0816]
[1738674206294,0.150935,99381.0,99377.0,0.0816]
[1738674206525,0.201241,99384.0,99377.0,0.0836]
[1738674206721,0.16508208,99388.0,99377.0,0.0836]
[1738674206953,0.201235,99387.0,99377.0,0.23454]
[1738674207102,0.201235,99386.0,99377.0,0.0836]
[1738674207316,0.16508208,99388.0,99377.0,0.08407067]
[1738674207524,0.150933,99382.0,99377.0,0.08407067]
[1738674207923,0.150937,99379.0,99377.0,0.08407067]
[1738674208121,0.201245,99382.0,99377.0,0.08407067]
[1738674208122,0.150933,99382.0,99377.0,0.08407067]
[1738674208334,0.150934,99381.0,99378.0,0.01875556]
[1738674208645,0.16508208,99388.0,99378.0,0.01875556]
[1738674208646,0.150932,99383.0,99378.0,0.05893278]
[1738674209252,0.150933,99382.0,99378.0,0.04017722]
[1738674209458,0.16508208,99388.0,99378.0,0.04017722]
[1738674209459,0.150928,99386.0,99378.0,0.04017722]
[1738674209670,0.201235,99386.0,99378.0,0.04017722]
[1738674209881,0.150928,99385.0,99379.0,0.01731983]
[1738674210090,0.150933,99382.0,99379.0,0.01731983]
[1738674210290,0.201233,99387.0,99377.0,0.08307067]
[1738674210502,0.201233,99387.0,99378.0,0.002]
[1738674210503,0.150932,99383.0,99378.0,0.002]
[1738674210653,0.201235,99386.0,99378.0,0.002]
[1738674210864,0.150928,99385.0,99378.0,0.002]
[1738674211115,0.201235,99386.0,99378.0,0.002]
[1738674211598,0.16508208,99388.0,99381.0,0.15]
[1738674211853,0.16508208,99388.0,99382.0,0.201243]
[1738674212074,0.0001068,99389.0,99381.0,0.15]
[1738674212738,0.150925,99387.0,99382.0,0.01875448]
[1738674212956,0.0001068,99389.0,99382.0,0.01875448]
[1738674213166,0.150927,99386.0,99382.0,0.01875448]
[1738674213715,0.0001068,99389.0,99383.0,0.01875448]
[1738674213936,0.150929,99384.0,99383.0,0.01875448]
[1738674214123,0.201235,99386.0,99383.0,0.01875448]
[1738674214527,0.150928,99385.0,99383.0,0.01875448]
[1738674214961,0.150928,99385.0,99380.0,0.01875448]
[1738674215172,0.2013368,99389.0,99381.0,0.15]
[1738674215349,0.150923,99388.0,99381.0,0.15]
[1738674215552,0.0001068,99389.0,99381.0,0.15]
[1738674215756,0.0001068,99386.0,99381.0,0.15]
[1738674216221,0.15093,99384.0,99380.0,0.01875448]
[1738674216426,0.1510348,99386.0,99382.0,0.01875448]
[1738674216846,0.0001068,99386.0,99382.0,0.01875448]
[1738674217041,0.1320308,99388.0,99382.0,0.01875448]
[1738674217447,0.0001068,99389.0,99378.0,0.15222428]
[1738674217448,0.0001068,99389.0,99378.0,0.00222428]
[1738674217663,0.0001068,99389.0,99388.0,0.150923]
[1738674217865,0.0001068,99389.0,99388.0,0.232523]
[1738674218077,0.0001068,99389.0,99388.0,0.53010806]
[1738674218496,0.0001068,99389.0,99388.0,0.55310806]
[1738674218724,0.0001068,99389.0,99388.0,0.57310806]
[1738674219130,0.0001068,99389.0,99388.0,0.56310806]
[1738674219790,0.0001068,99389.0,99388.0,0.59182834]
[1738674221633,0.08024193,99421.0,99402.0,0.399202]
[1738674221855,0.08024193,99421.0,99402.0,0.54968706]
[1738674222073,0.06145553,99421.0,99420.0,0.150875]
[1738674222292,0.13581079,99430.0,99409.0,0.0012069]
[1738674222507,0.13581079,99430.0,99423.0,0.150869]
[1738674222722,0.0001069,99436.0,99424.0,0.150868]
[1738674222950,0.0001069,99436.0,99425.0,0.0150868]
[1738674223385,0.150856,99433.0,99425.0,0.0150868]
[1738674223624,0.150856,99433.0,99425.0,0.2452528]
[1738674223878,0.00015426,99436.0,99426.0,0.01872028]
[1738674223879,0.150856,99432.0,99426.0,0.01872028]
[1738674224314,0.150854,99434.0,99427.0,0.03152701]
[1738674224529,0.00015426,99436.0,99427.0,0.03152701]
[1738674224752,0.201136,99435.0,99427.0,0.03152701]
[1738674224962,0.150856,99433.0,99428.0,0.01872028]
[1738674225173,0.201136,99435.0,99428.0,0.01872028]
[1738674225389,0.150861,99429.0,99428.0,0.01872028]
[1738674226800,0.201145,99431.0,99420.0,0.01972028]
[1738674227006,0.13581079,99430.0,99421.0,0.02481203]
[1738674227244,0.150871,99423.0,99421.0,0.02481203]
[1738674227695,0.150871,99423.0,99420.0,0.01972028]
[1738674227885,0.150868,99425.0,99420.0,0.01972028]
[1738674228098,0.150868,99425.0,99420.0,0.001]
[1738674228652,0.201153,99427.0,99420.0,0.001]
[1738674228858,0.150867,99425.0,99421.0,0.01697203]
[1738674229304,0.150866,99426.0,99421.0,0.01697203]
[1738674229711,0.13581079,99430.0,99421.0,0.01697203]
[1738674229910,0.13581079,99430.0,99422.0,0.01872028]
[1738674230480,0.0001068,99429.0,99422.0,0.01872028]
[1738674230885,0.1509678,99429.0,99422.0,0.01872028]
[1738674231006,0.150864,99428.0,99422.0,0.01872028]
[1738674231206,0.0001068,99429.0,99422.0,0.01872028]
[1738674231405,0.1509678,99429.0,99422.0,0.01872028]
[1738674231670,0.0001068,99429.0,99421.0,0.001]
[1738674232236,0.10238506,99428.0,99421.0,0.001]
[1738674232440,0.150869,99424.0,99421.0,0.001]
[1738674232642,0.10238506,99423.0,99421.0,0.001]
[1738674232868,0.150872,99422.0,99421.0,0.001]
[1738674233120,0.25325706,99422.0,99421.0,0.002]
[1738674233330,0.41833914,99422.0,99421.0,0.002]
[1738674233550,0.41833914,99422.0,99421.0,0.001]
[1738674233762,0.41833914,99422.0,99421.0,0.002]
[1738674233974,0.56833914,99422.0,99421.0,0.002]
[1738674234426,0.56833914,99422.0,99421.0,0.001]
[1738674235045,0.56833914,99422.0,99387.0,0.01872028]
[1738674235046,0.15,99421.0,99387.0,0.01872028]
[1738674235248,0.150899,99404.0,99387.0,0.01872028]
[1738674235498,0.46500464,99420.0,99388.0,0.0012073]
[1738674235706,0.150881,99416.0,99397.0,0.150908]
[1738674235915,0.13581079,99410.0,99388.0,0.00120721]
[1738674236119,0.13581079,99400.0,99386.0,0.0762]
[1738674236328,0.13581079,99400.0,99386.0,0.227126]
[1738674236750,0.13581079,99400.0,99386.0,0.0762]
[1738674236989,0.13581079,99400.0,99387.0,0.150924]
[1738674237198,0.11681079,99400.0,99387.0,0.150924]
[1738674238288,0.11681079,99400.0,99388.0,0.1937582]
[1738674238503,0.11681079,99400.0,99386.0,0.0762]
[1738674238504,0.201209,99399.0,99386.0,0.0762]
[1738674238685,0.11681079,99400.0,99386.0,0.0762]
[1738674239345,0.28424482,99400.0,99386.0,0.0762]
[1738674239549,0.28424482,99400.0,99387.0,0.00762]
[1738674239758,0.150908,99399.0,99386.0,0.0762]
[1738674239965,0.01652903,99400.0,99387.0,0.150925]
[1738674240172,0.01652903,99400.0,99386.0,0.0762]
[1738674240397,0.150904,99401.0,99386.0,0.0762]
[1738674240608,0.16508208,99409.0,99387.0,0.00120729]
[1738674240831,0.00014111,99408.0,99407.0,0.150894]
[1738674241077,0.00014111,99408.0,99388.0,0.402462]
[1738674241274,0.00014111,99408.0,99406.0,0.150895]
[1738674241498,0.00014111,99408.0,99407.0,0.0754]
[1738674242226,0.14622319,99417.0,99407.0,0.0754]
[1738674242932,0.150883,99415.0,99407.0,0.0754]
[1738674243176,0.34739619,99417.0,99407.0,0.07562428]
[1738674243374,0.150882,99415.0,99407.0,0.07562428]
[1738674243606,0.150884,99414.0,99407.0,0.07662428]
[1738674243889,0.05188675,99413.0,99407.0,0.00122428]
[1738674244120,0.150893,99408.0,99407.0,0.00022428]
[1738674244601,0.39950125,99408.0,99407.0,0.00022428]
[1738674244839,0.44500125,99408.0,99407.0,0.00122428]
[1738674245304,0.44500125,99408.0,99407.0,0.00022428]
[1738674245534,0.44500125,99408.0,99407.0,0.00122428]
[1738674246240,0.44500125,99408.0,99407.0,1e-08]
[1738674246479,0.59500125,99408.0,99407.0,1e-08]
[1738674246717,0.69749597,99408.0,99407.0,1e-08]
[1738674247142,0.69749597,99408.0,99387.0,0.001]
[1738674247143,0.150923,99388.0,99387.0,0.001]
[1738674247368,0.39953125,99388.0,99387.0,0.00114111]
[1738674247622,0.39953125,99388.0,99387.0,0.00014111]
[1738674248506,0.44723125,99388.0,99387.0,0.00014111]
[1738674249137,0.31331466,99388.0,99387.0,0.00014111]
[1738674249583,0.29714619,99388.0,99387.0,0.00014111]
[1738674249804,0.29714619,99388.0,99387.0,0.00833522]
[1738674250032,0.14622319,99388.0,99387.0,0.00014111]
[1738674251884,0.14622319,99388.0,99387.0,0.00114111]
[1738674253014,0.150909,99398.0,99388.0,0.150923]
[1738674253227,0.201197,99405.0,99390.0,0.15092]
[1738674253442,0.150907,99399.0,99388.0,0.150922]
[1738674253879,0.150908,99398.0,99388.0,0.150922]
[1738674254616,0.150911,99396.0,99387.0,0.00134838]
[1738674254846,0.150918,99392.0,99390.0,0.001]
[1738674255067,0.150921,99390.0,99387.0,0.00014111]
[1738674255296,0.150921,99390.0,99388.0,0.001]
[1738674255518,0.150918,99392.0,99387.0,0.00014111]
[1738674255741,0.201219,99394.0,99387.0,0.00014111]
[1738674255989,0.201219,99394.0,99387.0,0.00114111]
[1738674256216,0.150923,99388.0,99387.0,0.00014111]
[1738674257608,0.150921,99390.0,99388.0,0.001]
[1738674257828,0.150917,99392.0,99388.0,0.001]
[1738674258052,0.150917,99392.0,99387.0,0.00014111]
[1738674258281,0.150917,99392.0,99387.0,0.00114111]
[1738674258513,0.150914,99394.0,99387.0,0.00114111]
[1738674258766,0.13591248,99410.0,99390.0,0.001]
[1738674259009,0.12884193,99418.0,99390.0,0.001]
[1738674259010,0.08024193,99418.0,99391.0,0.00120713]
[1738674259279,0.14622319,99421.0,99390.0,0.15178506]
[1738674259280,0.29709719,99421.0,99412.0,0.150886]
[1738674259490,0.14622319,99421.0,99414.0,0.150884]
[1738674259795,0.14622319,99421.0,99394.0,0.0778]
[1738674260071,0.14622319,99421.0,99395.0,0.10359204]
[1738674260301,0.14622319,99421.0,99396.0,0.201215]
[1738674260523,0.14622319,99421.0,99411.0,0.201184]
[1738674260754,0.150876,99419.0,99411.0,0.150888]
[1738674261225,0.150878,99418.0,99410.0,0.150889]
[1738674261460,0.13591248,99420.0,99412.0,0.150887]
[1738674261676,0.14622319,99421.0,99412.0,0.150887]
[1738674262177,0.12732999,99421.0,99411.0,0.2363918]
[1738674262431,0.12732999,99421.0,99414.0,0.150883]
[1738674262961,0.0001068,99430.0,99412.0,0.0821]
[1738674263217,0.0001068,99430.0,99414.0,0.00120697]
[1738674263470,0.1509668,99430.0,99419.0,0.150875]
[1738674263723,0.0001068,99430.0,99420.0,0.150874]
[1738674264217,0.1509668,99430.0,99420.0,0.150874]
[1738674264728,0.0001068,99430.0,99419.0,0.001]
[1738674264964,0.1509678,99430.0,99418.0,0.150877]
[1738674265202,0.150862,99429.0,99418.0,0.149077]
[1738674265438,0.0001068,99430.0,99420.0,0.001]
[1738674265709,0.150865,99427.0,99420.0,0.001]
[1738674265956,0.150862,99429.0,99420.0,0.002]
[1738674266151,0.150863,99428.0,99420.0,0.002]
[1738674266533,0.0001068,99430.0,99420.0,0.002]
[1738674266758,0.150862,99429.0,99420.0,0.002]
[1738674266988,0.150862,99429.0,99420.0,0.001]
[1738674267225,0.0001068,99430.0,99420.0,0.002]
[1738674267418,0.0001068,99430.0,99420.0,0.0362078]
[1738674267637,0.1509668,99430.0,99421.0,0.150873]
[1738674267852,0.150864,99427.0,99420.0,0.002]
[1738674268065,0.150864,99427.0,99420.0,0.001]
[1738674269209,0.0001068,99430.0,99420.0,0.001]
[1738674269441,0.0001068,99430.0,99413.0,0.20118]
[1738674269661,0.0001068,99430.0,99414.0,0.00120686]
[1738674269945,0.0001068,99430.0,99420.0,0.001]
[1738674270199,0.0001068,99430.0,99425.0,0.150867]
[1738674270446,0.0001068,99430.0,99420.0,0.001]
[1738674270666,0.0001068,99430.0,99422.0,0.15087]
[1738674270861,0.0001068,99430.0,99420.0,0.002]